[Event "Prague Festival Challengers 2024"]
[Site "Prague"]
[Date "2024.03.06"]
[Round "8.5"]
[White "Rodshtein, Maxim"]
[Black "Hrbek, Stepan"]
[Result "0-1"]
[ECO "C55"]
[WhiteElo "2580"]
[BlackElo "2426"]
[Annotator "TA"]
[PlyCount "134"]
[EventDate "2024.02.22"]
[EventType "tourn"]
[EventCountry "CZE"]
[SourceTitle "playchess.com"]
[Source "ChessBase"]
[SourceQuality "1"]
[TimeControl "40/5400+30:1800+30"]

{[%evp 10,134,38,43,35,35,47,29,44,24,16,16,41,15,33,22,14,18,47,63,71,14,113,102,146,137,129,126,135,132,133,131,125,105,95,115,91,-15,141,127,175,104,111,20,16,8,10,18,11,4,39,-68,-55,-54,-68,-57,-59,-40,-87,-167,-187,-180,-189,-446,-337,-337,-337,-337,-337,-337,-337,-522,-506,-556,-550,-558,-523,-580,-580,-576,-567,-643,-628,-613,-613,-650,-864,-972,-905,-830,-864,-1096,-1044,-944,-947,-1420,-1168,-1673,-1572,-2666,-2288,-29960,-29961,-29966,-29971,-29971,-29972,-29969,-29972,-29971,-29973,-29978,-29979,-29980,-29981,-29981,-3813,-1462,0,-29981,-29982,-29982,-29983,-29982,-29983,-29983,-29984]} 1. e4 {[%emt 0:00:08]} e5 {[%emt 0:00:32]} 2. Nf3 {[%emt 0:00:10]} Nc6 {[%emt 0:00:06]} 3. Bc4 {[%emt 0:00:34]} Nf6 {[%emt 0:00:14]} 4. d3 {[%emt 0:00:12]} h6 {[%emt 0:00:13]} 5. O-O {[%emt 0:01:27]} d6 {[%emt 0:00:10]} 6. c3 {[%emt 0:10:07]} g5 {[%emt 0:00:11]} 7. Nbd2 {[%emt 0:14:29]} Bg7 {[%emt 0:00:14]} 8. Bb3 {[%emt 0:01:19]} a5 {[%emt 0:00:41] Weiß hat minimalen Vorteil.} 9. Nc4 {[%emt 0:12:56]} O-O {[%emt 0:01:22]} 10. Ne3 {[%emt 0:00:39]} Ne7 {[%emt 0:07:05][%cal Bc6e7,Be7g6,Bg6f4][%mdl 32]} 11. h3 {[%emt 0:05:57]} Ng6 {[%emt 0:08:19]} 12. Nh2 {[%emt 0:04:22]} Nf4 {[%emt 0:08:03]} 13. a4 {[%emt 0:07:13]} h5 {[%emt 0:15:35]} 14. Re1 {[%emt 0:02:50]} Bd7 {[%emt 0:03:19]} 15. Nhf1 {[%emt 0:02:18]} (15. Nc4 $16) 15... Qc8 {[%emt 0:04:56]} (15... g4 $11 {bleibt in der Remisbreite.}) 16. Ng3 $1 $16 {[%emt 0:02:25]} Bxh3 {[%emt 0:05:50]} 17. Ngf5 {[%emt 0:00:33]} Bxf5 {[%emt 0:00:47]} 18. Nxf5 {[%emt 0:00:05]} Kh7 {[%emt 0:03:56]} 19. g3 {[%emt 0:04:37]} Ne6 {[%emt 0:02:46]} 20. Kg2 {[%emt 0:02:12]} Bh6 {[%emt 0:02:07]} 21. Rh1 {[%emt 0:04:04]} Ng7 {[%emt 0:01:56]} 22. Nxh6 {[%emt 0:01:29]} Kxh6 {[%emt 0:00:03]} 23. d4 {[%emt 0:04:58]} (23. Bc2 $16) 23... Kg6 $2 {[%emt 0:15:44]} (23... Nxe4 $11 24. Re1 f5) 24. Qd2 {[%emt 0:01:19]} Nxe4 {[%emt 0:05:10]} (24... Nh7 $16) 25. Qe3 {[%emt 0:03:25]} ({Vorzuziehen ist} 25. Bc2 $18 f5 (25... Qf5 $2 26. Qe2 $18) 26. Bxe4 fxe4 27. Qxg5+ Kf7 28. dxe5) 25... Qg4 {[%emt 0:01:35] [#]} 26. Bc2 {[%emt 0:07:32]} (26. Bd5 $2 Nf6 27. Bf3 exd4 $19) (26. Bd1 $1 $16 {[%cal Rd1g4]} exd4 27. cxd4) 26... d5 $1 $11 {[%emt 0:00:28] Droht stark ...h4.} (26... f5 $2 27. Bd1 d5 (27... exd4 $2 28. Qxd4 c5 29. Qc4 $18) 28. Qe1 $18 (28. Bxg4 fxg4 29. Rf1 Rf3 $18)) 27. Qe1 {[%emt 0:01:55]} Qe6 $1 {[%emt 0:07:50]} 28. f3 {[%emt 0:00:02]} (28. Bxe4+ dxe4 29. Qxe4+ Qf5 30. Qxe5 (30. Qxf5+ $2 Nxf5 31. dxe5 Rad8 $17) 30... Qxe5 31. dxe5 Rfd8 $16) 28... f5 {[%emt 0:00:05][%cal Oe5d4]} 29. fxe4 {[%emt 0:00:07]} fxe4 {[%emt 0:00:16]} 30. Qe3 {[%emt 0:01:16] Verhindert Rf3.} ({Günstiger ist} 30. Bd1 $14) 30... Rf5 $15 {[%emt 0:03:38] Droht ...exd4 und aus.} 31. Bd2 $1 {[%emt 0:00:46]} exd4 {[%emt 0:00:10]} 32. cxd4 {[%emt 0:00:17]} Raf8 {[%emt 0:00:40]} 33. Raf1 $1 {[%emt 0:00:10]} (33. Bxa5 $2 Rf2+ (33... Rf3 $2 34. Qe1 $19) 34. Qxf2 Rxf2+ 35. Kxf2 Qf6+ 36. Ke3 Nf5+ 37. Kd2 Nxd4 $19 (37... Nxg3 $2 38. Rhe1 $19) (37... Qxd4+ $2 38. Kc1 $19)) 33... Qf6 $36 {[%emt 0:00:51][%mdl 2048] Weiss steht unter starkem Druck. Schach mit Chili.} 34. Rxf5 {[%emt 0:01:25]} (34. Qe1 $17) 34... Nxf5 $19 {[%emt 0:01:11]} 35. Qe2 {[%emt 0:00:02]} h4 {[%emt 0:00:28]} (35... Qxd4 $2 36. Qxh5+ (36. Bxa5 $2 Ne3+ 37. Kh3 g4+ 38. Kh2 Nxc2 $19) 36... Kf6 37. Bc3 $18 (37. Qxg5+ Ke6 $18) (37. Qxg5+ Ke6 $18)) 36. Rf1 $2 {[%emt 0:02:37]} (36. Be1 Nxd4 (36... Qxd4 37. gxh4 Qxb2 38. Rh3 $11) 37. Bxe4+ Kg7 (37... dxe4 $2 38. Qxe4+ Qf5 39. Qxf5+ Nxf5 40. gxh4 $19) 38. Qg4 dxe4 39. gxh4) 36... Ne3+ {[%emt 0:00:59]} 37. Bxe3 {[%emt 0:00:26]} (37. Qxe3 Qxf1+ 38. Kh2 Rf2+) 37... Qxf1+ {[%emt 0:00:35]} (37... h3+ 38. Kxh3 (38. Kg1 $2 h2+ 39. Kxh2 Qxf1 $19) 38... Qxf1+ 39. Qxf1 Rxf1 40. Kg2 (40. Kg4 Rf3 $17)) 38. Qxf1 {[%emt 0:00:05]} h3+ {[%emt 0:00:03]} 39. Kxh3 {[%emt 0:00:07]} Rxf1 {[%emt 0:00:05]} 40. Kg4 {[%emt 0:00:15]} (40. Kg2 $142 Ra1 41. Kf2) 40... c6 {[%emt 0:01:40]} 41. b3 {[%emt 0:32:13]} b6 {[%emt 0:14:22]} 42. Bxg5 {[%emt 0:00:00]} Rh1 {[%emt 0:08:08]} 43. Be3 {[%emt 0:00:00]} Kf6 {[%emt 0:00:20]} 44. Bd2 {[%emt 0:00:00]} Rf1 {[%emt 0:03:35]} 45. Be3 {[%emt 0:00:00]} Ke6 {[%emt 0:00:57]} 46. Kh3 {[%emt 0:00:00]} Re1 {[%emt 0:00:41]} 47. Bf4 {[%emt 0:02:45]} c5 {[%emt 0:00:25]} 48. dxc5 {[%emt 0:00:20]} bxc5 {[%emt 0:00:06]} 49. Kg4 {[%emt 0:01:03]} d4 {[%emt 0:02:15] Weiss muss nun ...Kd5 beachten.} 50. b4 {[%emt 0:00:01]} cxb4 {[%emt 0:02:53]} 51. Bb3+ {[%emt 0:00:07]} Kd7 {[%emt 0:00:04]} 52. Kf5 {[%emt 0:00:33]} e3 {[%emt 0:01:59] ...e2 ist eine echte Drohung.} 53. Be6+ {[%emt 0:01:05]} Kc6 {[%emt 0:00:39]} 54. Ke4 {[%emt 0:00:05]} e2 {[%emt 0:00:13] ...Rf1 wäre nun fies.} 55. Kd3 {[%emt 0:02:07] [#]} b3 $1 {[%emt 0:00:05][%mdl 512]} 56. Bxb3 {[%emt 0:00:37]} Rb1 {[%emt 0:00:08]} 57. Kxe2 {[%emt 0:00:09]} Rxb3 {[%emt 0:00:07] KR-KB} 58. g4 {[%emt 0:00:47]} Kd5 {[%emt 0:01:51]} 59. g5 {[%emt 0:00:16]} Ke4 {[%emt 0:00:44]} 60. Bd2 {[%emt 0:00:49]} d3+ {[%emt 0:00:12]} 61. Kf2 {[%emt 0:00:23]} Rb2 {[%emt 0:00:12]} 62. Ke1 {[%emt 0:00:05]} Rb1+ {[%emt 0:00:03]} (62... Kf3 $142 63. Bc3 Re2+ 64. Kd1 Ke3 65. Bxa5 Rb2 66. Kc1 Ra2 67. g6 Rxa4 68. g7 Rg4 (68... Rxa5 69. g8=Q $19) 69. Bd2+ Ke2 70. Bh6 Rxg7 71. Bxg7 d2+ 72. Kb2 d1=Q (72... d1=B 73. Bh8 $11) 73. Kc3 Qa1+ 74. Kc4 Qxg7 75. Kd5 Qd7+ 76. Ke4 Qd6 77. Kf5 Kf3 78. Kg5 Qe6 79. Kh5 Kf4 80. Kh4 Qh6#) 63. Kf2 {[%emt 0:00:04]} Rb2 {[%emt 0:01:24]} (63... Rb3 $19 64. g6 Rb7 (64... Rb2 65. g7 $11)) 64. Ke1 {[%emt 0:00:02]} Kf3 {[%emt 0:00:30] Schwarz setzt Matt.} 65. Bc3 {[%emt 0:01:05]} Re2+ {[%emt 0:00:39]} 66. Kd1 {[%emt 0:00:02]} Ke3 {[%emt 0:00:28]} 67. Bxa5 {[%emt 0:01:57]} Rb2 {[%emt 0:00:17] Was für ein Comeback für Schwarz.   Gewichteter Fehlerwert: Weiß=0.67/Schwarz=0.15 (sehr präzise) .  Fehler:       	Weiß=8     	Schwarz=3     Ungenau:       	Weiß=1     	Schwarz=3     OK:         	Weiß=14    	Schwarz=15    Bester:       	Weiß=2     	Schwarz=3     Stark:        	Weiß=3     	Schwarz=2} 0-1

[Event "Prague Festival Challengers 2024"]
[Site "Prague"]
[Date "2024.03.07"]
[Round "9.1"]
[White "Korobov, Anton"]
[Black "Gurel, Ediz"]
[Result "0-1"]
[ECO "A03"]
[WhiteElo "2663"]
[BlackElo "2560"]
[Annotator "TA"]
[PlyCount "126"]
[EventDate "2024.02.22"]
[EventType "tourn"]
[EventCountry "CZE"]
[SourceTitle "playchess.com"]
[Source "ChessBase"]
[SourceQuality "1"]
[TimeControl "40/5400+30:1800+30"]

{[%evp 56,126,-69,-118,-113,-108,-131,-123,-123,-133,-134,-134,-133,-131,-131,-141,-136,-134,-137,-118,-112,-145,-144,-137,-83,-83,-83,-83,-90,-83,-83,-83,-90,-95,-86,-86,-96,-86,-96,-90,-90,-90,-83,-130,-121,-290,-304,-292,-216,-244,-246,-233,-200,-212,-231,-314,-301,-618,-604,-610,-601,-5608,-4702,-29952,-29937,-29963,-29965,-29969,-29973,-29973,-29974,-29963,-29962]} 1. f4 {[%emt 0:00:03]} d5 {[%emt 0:01:14]} 2. Nf3 {[%emt 0:00:03]} c5 {[%emt 0:00:45]} 3. g3 {[%emt 0:00:10]} Nc6 {[%emt 0:00:46]} 4. Bg2 {[%emt 0:00:07]} g6 {[%emt 0:02:36]} 5. O-O {[%emt 0:00:07]} Bg7 {[%emt 0:00:02]} 6. d3 {[%emt 0:00:06]} Nf6 {[%emt 0:01:49]} 7. Qe1 {[%emt 0:04:58]} d4 {[%emt 0:05:45]} 8. c3 {[%emt 0:06:12]} O-O {[%emt 0:02:26]} 9. Na3 {[%emt 0:00:19]} Be6 {[%emt 0:06:45] A03: Bird's Opening with 1...d5.} 10. Bd2 {[%emt 0:04:38]} Qd7 {[%emt 0:03:01]} 11. Ng5 {[%emt 0:07:30]} Bf5 {[%emt 0:04:15]} 12. Nc4 {[%emt 0:04:38]} h6 {[%emt 0:03:59]} 13. Nf3 {[%emt 0:02:37]} Bh3 {[%emt 0:09:31]} 14. Nce5 {[%emt 0:01:40]} Nxe5 {[%emt 0:00:05]} 15. fxe5 $146 {[%emt 0:01:06]} ({Predecessor:} 15. Nxe5 Qe6 16. Bxh3 Qxh3 17. e4 dxe3 18. Bxe3 b6 19. d4 Rac8 20. Qe2 Qe6 21. dxc5 bxc5 22. Qc4 Qxc4 23. Nxc4 Ne4 24. Rfd1 Rfd8 {½-½ Grunberg,F (2267)-Horvath,P (2463) Szombathely Savaria op 3rd 2003 (2)}) 15... dxc3 {[%emt 0:00:29]} 16. bxc3 {[%emt 0:02:13]} Nd5 {[%emt 0:00:11]} 17. Bxh3 {[%emt 0:04:16]} Qxh3 {[%emt 0:00:02]} 18. Qf2 {[%emt 0:00:50]} Rac8 {[%emt 0:01:20]} 19. c4 {[%emt 0:10:33]} Nb6 {[%emt 0:00:42]} 20. Rab1 {[%emt 0:00:05]} Rc7 {[%emt 0:07:05]} 21. Ba5 {[%emt 0:02:48]} Qe6 {[%emt 0:00:44]} 22. Rb5 {[%emt 0:12:06]} Rfc8 {[%emt 0:02:53]} 23. h4 {[%emt 0:04:10]} Rc6 {[%emt 0:04:09]} 24. Kg2 {[%emt 0:03:24]} a6 {[%emt 0:08:43]} 25. Rb3 {[%emt 0:04:14]} Nd7 {[%emt 0:00:50]} 26. d4 {[%emt 0:01:24]} cxd4 {[%emt 0:07:49]} 27. Nxd4 {[%emt 0:00:02]} Qxc4 {[%emt 0:00:05]} 28. e6 {[%emt 0:01:26]} Qd5+ {[%emt 0:02:13]} (28... Bxd4 $2 29. Qxf7+ (29. exf7+ $2 Kf8 $19) 29... Kh8 30. exd7 $18) 29. Qf3 {[%emt 0:02:11]} (29. e4 $15 Qxe4+ (29... Qxa5 $2 30. exd7 Rf8 31. Nxc6 $18) (29... Qxd4 $2 30. Qxd4 Bxd4 31. exd7 $18) 30. Kh3) 29... Qxd4 $17 {[%emt 0:00:53]} (29... Qxa5 $2 {is the wrong capture.} 30. Qxf7+ (30. exd7 Rf8 $18) (30. Nxc6 Ne5 $18) 30... Kh7 31. exd7 $18) 30. exd7 {[%emt 0:02:38]} Qxd7 {[%emt 0:00:21]} 31. Qxf7+ {[%emt 0:00:02]} Kh7 {[%emt 0:00:52]} 32. Rd3 {[%emt 0:08:43]} Qe6 {[%emt 0:01:58]} 33. Rf2 {[%emt 0:01:01]} Qe4+ {[%emt 0:02:29]} 34. Qf3 {[%emt 0:00:12]} Qa4 {[%emt 0:02:01]} 35. Bd8 {[%emt 0:01:04]} Qxa2 {[%emt 0:02:36]} 36. Bxe7 {[%emt 0:01:23]} Qe6 {[%emt 0:01:35]} 37. Bb4 {[%emt 0:03:03]} h5 {[%emt 0:03:56]} 38. Re3 {[%emt 0:03:27]} Qc4 {[%emt 0:00:14]} 39. Re4 {[%emt 0:01:43]} Qd5 {[%emt 0:01:18]} (39... Qg8 $142 40. Qf7 (40. Re7 R6c7 $17) 40... R6c7) 40. Re7 $17 {[%emt 0:02:07]} Qxf3+ {[%emt 0:00:05]} 41. Rxf3 {[%emt 0:30:04]} R8c7 {[%emt 0:30:05]} 42. Rff7 {[%emt 0:00:22]} Rxe7 {[%emt 0:00:02]} 43. Rxe7 {[%emt 0:00:10]} b5 {[%emt 0:00:35]} 44. Ra7 {[%emt 0:00:00]} Kg8 {[%emt 0:00:00]} 45. Ra8+ {[%emt 0:00:00]} Kf7 {[%emt 0:00:00]} 46. Ra7+ {[%emt 0:00:00]} Kf6 $1 {[%emt 0:00:00]} 47. Kf3 {[%emt 0:00:00]} Bh6 {[%emt 0:00:00]} 48. e3 {[%emt 0:00:00]} g5 {[%emt 0:00:00]} 49. Be7+ {[%emt 0:00:00]} (49. hxg5+ $142 Kxg5 (49... Bxg5 50. Ra8 $17) 50. Be7+ Kg6 51. e4) 49... Kg6 $17 {[%emt 0:00:00]} 50. Ke4 $2 {[%emt 0:00:00] [#]} (50. Ra8 $17 {is a better defense.}) 50... gxh4 $1 $19 {[%emt 0:00:00]} 51. Bxh4 {[%emt 0:00:00]} Re6+ {[%emt 0:00:00]} 52. Kd5 {[%emt 0:00:00]} Bxe3 {[%emt 0:00:00]} ({Weaker is} 52... Rxe3 53. Rxa6+ Kh7 54. Rb6 $11) 53. Ra8 {[%emt 0:00:00]} Kf7 {[%emt 0:00:00]} 54. Rd8 {[%emt 0:00:00]} Rb6 {[%emt 0:00:00]} 55. Ke4 {[%emt 0:00:10]} Bh6 {[%emt 0:00:00]} 56. Kf5 $2 {[%emt 0:01:11]} (56. Rd7+ Kg6 57. Bd8 Re6+ 58. Kd5) 56... Rb7 $19 {[%emt 0:00:00]} 57. Rd6 {[%emt 0:00:51] [#]} Bg7 $1 {[%emt 0:00:00]} 58. Bf6 {[%emt 0:01:24]} b4 {[%emt 0:00:00]} 59. Bxg7 {[%emt 0:00:07]} Kxg7 {[%emt 0:00:00]} 60. Rg6+ {[%emt 0:00:08]} Kh7 {[%emt 0:00:00]} 61. Rxa6 {[%emt 0:00:06]} b3 {[%emt 0:00:00]} 62. Ra1 {[%emt 0:00:02]} b2 {[%emt 0:00:00]} 63. Rb1 {[%emt 0:00:07]} Kg7 {[%emt 0:00:00]} 0-1

[Event "Prague Festival Challengers 2024"]
[Site "Prague"]
[Date "2024.03.07"]
[Round "9.2"]
[White "L'Ami, Erwin"]
[Black "Mishra, Abhimanyu"]
[Result "1/2-1/2"]
[ECO "D10"]
[WhiteElo "2627"]
[BlackElo "2627"]
[Annotator "TA"]
[PlyCount "91"]
[EventDate "2024.02.22"]
[EventType "tourn"]
[EventCountry "CZE"]
[SourceTitle "playchess.com"]
[Source "ChessBase"]
[SourceQuality "1"]
[TimeControl "40/5400+30:1800+30"]

{[%evp 16,91,31,12,16,16,16,20,10,17,14,21,27,32,20,22,25,18,20,9,10,4,12,12,12,12,4,12,8,6,10,13,35,0,0,0,0,0,0,0,0,7,14,0,0,0,0,0,0,0,0,0,0,0,0,0,0,0,0,0,0,0,0,0,0,0,0,0,0,0,0,0,0,0,0,0,0,0]} 1. d4 {[%emt 0:00:05]} d5 {[%emt 0:00:03]} 2. c4 {[%emt 0:00:17]} c6 {[%emt 0:00:04]} 3. Nc3 {[%emt 0:00:28]} Nf6 {[%emt 0:00:14]} 4. cxd5 {[%emt 0:00:48]} cxd5 {[%emt 0:00:20]} 5. Bf4 {[%emt 0:00:00]} Nc6 {[%emt 0:00:40]} 6. e3 {[%emt 0:00:00]} a6 {[%emt 0:00:30]} 7. Bd3 {[%emt 0:00:34]} Bg4 {[%emt 0:00:52]} 8. Nge2 {[%emt 0:00:20]} e6 {[%emt 0:00:48]} 9. h3 {[%emt 0:00:52]} Bxe2 {[%emt 0:04:56]} 10. Qxe2 {[%emt 0:00:48]} Bd6 {[%emt 0:01:31]} 11. Bg5 {[%emt 0:02:07][%cal Bf4g5,Bg5h4,Bh4g3][%mdl 32]} O-O {[%emt 0:04:53]} 12. O-O {[%emt 0:00:36]} h6 {[%emt 0:02:55]} 13. Bh4 {[%emt 0:00:10]} Be7 {[%emt 0:00:42]} 14. Bg3 {[%emt 0:08:14]} Bd6 {[%emt 0:03:56]} 15. f4 {[%emt 0:02:58]} Ne8 {[%emt 0:13:15]} 16. Rad1 {[%emt 0:11:43]} f5 {[%emt 0:02:38]} 17. Be1 {[%emt 0:08:45]} Nf6 {[%emt 0:09:00]} 18. Bh4 {[%emt 0:06:16]} Qd7 {[%emt 0:06:16]} 19. Bxf6 {[%emt 0:05:04]} Rxf6 {[%emt 0:00:34]} 20. g4 {[%emt 0:00:17]} g6 {[%emt 0:03:26]} 21. Kh1 {[%emt 0:01:27]} Kh8 {[%emt 0:04:52]} 22. Rg1 {[%emt 0:05:46]} Rg8 {[%emt 0:01:51]} 23. Rg2 {[%emt 0:01:48]} Qh7 {[%emt 0:07:54]} 24. gxf5 {[%emt 0:12:58]} gxf5 {[%emt 0:01:39] The position is equal.} 25. Rdg1 {[%emt 0:00:20]} Rfg6 {[%emt 0:05:51]} 26. Qh5 {[%emt 0:03:46]} Rxg2 {[%emt 0:03:45]} (26... Ne7 {simplifies} 27. Rxg6 Rxg6 28. Rxg6 Qxg6 29. Qxg6 Nxg6 30. Na4 Kg7) 27. Rxg2 {[%emt 0:00:08]} Rxg2 {[%emt 0:00:12]} 28. Kxg2 {[%emt 0:00:08]} Ne7 {[%emt 0:05:47]} 29. Na4 {[%emt 0:05:28]} Qg8+ {[%emt 0:01:27]} 30. Kf2 {[%emt 0:03:58]} Kg7 {[%emt 0:00:07]} 31. Qd1 {[%emt 0:01:52]} Qc8 {[%emt 0:03:44]} 32. Be2 {[%emt 0:03:24]} Qc7 {[%emt 0:02:19]} 33. Nc3 {[%emt 0:03:30]} Kf6 {[%emt 0:01:03]} 34. Bh5 {[%emt 0:02:13]} Nc6 {[%emt 0:04:13][%cal Od6f4]} 35. Ne2 {[%emt 0:02:38]} Na5 {[%emt 0:01:47]} 36. Qg1 {[%emt 0:02:27]} Qg7 {[%emt 0:00:08] Against Qg6+} 37. Ng3 {[%emt 0:01:20]} Qf8 {[%emt 0:01:51]} 38. Be2 {[%emt 0:02:26]} Nc6 {[%emt 0:00:51]} 39. Qc1 {[%emt 0:01:14]} Ne7 {[%emt 0:01:25]} 40. Qd1 {[%emt 0:01:15]} Qc8 {[%emt 0:00:59]} 41. Bd3 {[%emt 0:06:38]} Kg7 {[%emt 0:04:59]} 42. Qh5 {[%emt 0:04:00]} Qf8 {[%emt 0:05:22]} 43. Qd1 {[%emt 0:03:46]} Qc8 {[%emt 0:01:13]} 44. a3 {[%emt 0:00:41]} Ng8 {[%emt 0:02:52]} 45. Nh5+ {[%emt 0:01:27]} Kf7 {[%emt 0:01:50]} 46. Qc2 {[%emt 0:03:52] A balanced but interesting game.   Weighted Error Value: White=0.02 (flawless) /Black=0.01 (flawless) .  Inaccurate:     	White=1     	---        OK:         	White=12    	Black=18} 1/2-1/2

[Event "Prague Festival Challengers 2024"]
[Site "Prague"]
[Date "2024.03.07"]
[Round "9.3"]
[White "Vaishali, Rameshbabu"]
[Black "Santos Latasa, Jaime"]
[Result "1/2-1/2"]
[ECO "B30"]
[WhiteElo "2481"]
[BlackElo "2615"]
[Annotator "TA"]
[PlyCount "95"]
[EventDate "2024.02.22"]
[EventType "tourn"]
[EventCountry "CZE"]
[SourceTitle "playchess.com"]
[Source "ChessBase"]
[SourceQuality "1"]
[TimeControl "40/5400+30:1800+30"]

{[%evp 34,95,0,0,13,-20,-35,-62,-41,-51,-25,-19,-31,-39,-34,-5,-23,-29,-23,-79,-74,-69,-66,-65,-85,-62,-52,-115,-116,-107,0,0,0,0,0,0,8,8,56,66,55,0,0,0,0,0,0,-8,-8,-8,-8,-8,-8,-8,-8,-8,0,0,0,0,0,0,0,0]} 1. e4 {[%emt 0:00:14]} c5 {[%emt 0:00:05]} 2. Nc3 {[%emt 0:00:07]} Nc6 {[%emt 0:00:05]} 3. Nf3 {[%emt 0:00:11]} g6 {[%emt 0:00:12]} 4. Bb5 {[%emt 0:00:15]} e5 {[%emt 0:01:16]} 5. d3 {[%emt 0:01:55]} d6 {[%emt 0:00:19]} 6. O-O {[%emt 0:09:52] B30: Sizilianisch (Rossolimo-Variante).} Bg7 {[%emt 0:00:49]} 7. Nd5 {[%emt 0:01:40]} a6 {[%emt 0:04:21]} 8. Bc4 {[%emt 0:00:17]} h6 {[%emt 0:09:28]} 9. c3 {[%emt 0:20:38]} b5 $146 {[%emt 0:06:40]} ({Predecessor:} 9... Nge7 10. b4 cxb4 11. cxb4 O-O 12. Bd2 Kh7 13. Rc1 Be6 14. a4 Bxd5 15. exd5 Nb8 {1-0 Hracek,Z (2564)-Krzyzanowski,M (2535) Prague Challengers 4th 2022 (2)}) 10. Bb3 {[%emt 0:00:06]} Nge7 {[%emt 0:00:12]} 11. Be3 {[%emt 0:08:12]} O-O {[%emt 0:00:47]} 12. a4 {[%emt 0:00:33]} Rb8 {[%emt 0:01:22]} 13. axb5 {[%emt 0:01:20]} axb5 {[%emt 0:00:06]} 14. Nxe7+ {[%emt 0:05:20]} Nxe7 {[%emt 0:01:54]} 15. d4 {[%emt 0:02:00]} exd4 {[%emt 0:04:44]} 16. cxd4 {[%emt 0:00:06]} c4 {[%emt 0:00:10]} 17. Bc2 {[%emt 0:00:13]} f5 {[%emt 0:01:11]} 18. d5 {[%emt 0:09:30]} fxe4 {[%emt 0:06:09]} (18... Bxb2 $5 19. Bxh6 fxe4 20. Bxe4 Nf5 21. Bxf8 Bxa1 22. Qxa1 Qxf8 $11) 19. Bxe4 {[%emt 0:00:59]} Bf5 {[%emt 0:04:16]} 20. Qc2 {[%emt 0:07:07]} Bxe4 {[%emt 0:01:55]} 21. Qxe4 {[%emt 0:00:04]} Nf5 {[%emt 0:00:08]} 22. Nd4 $1 {[%emt 0:06:14]} Bxd4 {[%emt 0:10:43]} 23. Bxd4 {[%emt 0:00:04]} Re8 {[%emt 0:00:19]} 24. Qg4 {[%emt 0:01:09]} Qg5 {[%emt 0:00:23]} (24... Kf7 {ist vielschichtiger.} 25. Ra7+ Re7 26. Ra3 Re8) 25. Qxg5 {[%emt 0:00:16]} hxg5 {[%emt 0:00:13]} 26. Ba7 {[%emt 0:02:34]} (26. Bf6 $11) 26... Rb7 {[%emt 0:00:55]} 27. Ra6 {[%emt 0:06:26]} Ra8 {[%emt 0:08:25]} 28. Rfa1 {[%emt 0:00:07]} b4 {[%emt 0:00:43]} 29. g4 {[%emt 0:02:29]} Ne7 {[%emt 0:04:24]} (29... Nh4 30. Be3 Rxa6 31. Rxa6 $11) 30. Be3 {[%emt 0:11:29]} ({Besser ist} 30. Bd4 $15 Rxa6 31. Rxa6) 30... Rxa6 $17 {[%emt 0:00:35]} 31. Rxa6 {[%emt 0:00:01] [#]} b3 {[%emt 0:10:17]} (31... Nxd5 $6 32. Rxd6 Nxe3 33. fxe3 $11) (31... c3 $1 $17 {[%cal Rc3b2]} 32. bxc3 (32. Rxd6 $2 cxb2 33. Bxg5 b1=Q+ $19) 32... b3) 32. Bd4 $1 $11 {[%emt 0:01:39]} ({Natürlich nicht} 32. Rxd6 c3 33. Bd4 (33. Bxg5 $2 cxb2 34. h3 b1=Q+ $19) (33. bxc3 $2 b2 $19) 33... c2 $15) 32... Nxd5 {[%emt 0:02:57]} 33. Rxd6 {[%emt 0:00:22]} Nf4 {[%emt 0:00:16]} 34. Kf1 {[%emt 0:00:47]} Kf7 {[%emt 0:04:47]} 35. Rc6 {[%emt 0:01:03]} Rd7 {[%emt 0:01:52]} ({Ein No Go ist} 35... Rb4 36. Ke1 $16 (36. Bc3 Ra4 $11)) (35... Re7 $1 $11) 36. Rxc4 $14 {[%emt 0:00:29]} Ke6 {[%emt 0:00:09]} 37. Ke1 {[%emt 0:01:42]} (37. Rb4 $14) 37... Kd5 $11 {[%emt 0:03:48]} 38. Ra4 {[%emt 0:00:02]} Ke4 {[%emt 0:02:01]} 39. Be3+ {[%emt 0:01:25]} Kf3 {[%emt 0:00:10]} 40. Bxf4 {[%emt 0:00:15]} gxf4 {[%emt 0:00:05]} 41. Rb4 $1 {[%emt 0:01:10]} g5 {[%emt 0:00:17]} 42. Rxb3+ {[%emt 0:04:59]} Kg2 {[%emt 0:00:43]} 43. f3 {[%emt 0:06:47]} Re7+ {[%emt 0:00:13]} 44. Kd2 {[%emt 0:00:06]} Rd7+ {[%emt 0:00:13]} 45. Kc2 {[%emt 0:05:44]} Rc7+ {[%emt 0:00:14]} 46. Kd2 {[%emt 0:00:06]} Rd7+ {[%emt 0:00:12]} 47. Kc2 {[%emt 0:00:05]} Rc7+ {[%emt 0:01:21]} 48. Kd2 {[%emt 0:02:33]} 1/2-1/2